Cogmind - Beta 15 @@@ ROGUE MODE // 2025.07.10 @ 03:21:55 Player: Dingot Result: Destroyed by S-43 Plague with Heavy Machine Gun Performance ------------- Evolutions (9) 4500 Regions Visited (13) 2600 Robots Destroyed (1) 5 Value Destroyed (51) 51 Prototype IDs (1) 20 Alien Tech Used (0) 0 Bonus (1693) 1693 TOTAL SCORE: 8869 Bonus ------- Pacifist 1325 Follower Combat Kills 368 Cogmind --------- Core Integrity 0/1600 Matter 205/300 Energy 98/100 System Corruption 0% Temperature Cool (0) Movement Core (50) Location -1/Access Parts ------- > --- POWER (5) -------- (None) > --- PROPULSION (8) --- (None) > --- UTILITY (8) ------ (None) > --- WEAPON (4) ------- (None) > --- INVENTORY (5) ---- Light Ion Engine Power Amplifier Heavy Machine Gun Heavy Flak Cannon Heavy Flak Cannon Peak State ------------ > --- POWER ------------ Micro Nuclear Core > --- PROPULSION ------- Nuclear Pulse Thruster > --- UTILITY ---------- Power Amplifier > --- WEAPON ----------- (None) > --- INVENTORY -------- Light Ion Engine Heavy Machine Gun Heavy Flak Cannon Heavy Flak Cannon [Rating: 15] Favorites ----------- Power Micro Nuclear Core Power Core Micro Nuclear Core Reactor Light Antimatter Reactor Propulsion Flight Unit Hover Unit Aerolev Unit Flight Unit Flight Unit Utility Power Amplifier Device Power Amplifier Hackware Hacking Suite Weapon None Build | -11 -10 -9 -8 -7 -6 -6 -5 -4 -4 -4 -3 -2 -1 ------- Run | Yrd Mat Mat Mat Fac Fac Ext Fac Fac Upp Upp Res Res Acc Slots Evolved 18 | . . 2 2 2 2 . 2 2 . . 2 2 2 Power 4 | . . . . . . . . . . . 2 . 2 Propulsion 6 | . . 2 2 1 . . 1 . . . . . . Utility 6 | . . . . 1 2 . 1 2 . . . . . Weapon 2 | . . . . . . . . . . . . 2 . Parts Attached 13 | . 2 . . . 5 . 2 . 2 . 2 . . Power 2 | . . . . . 1 . . . 1 . . . . Engine . | . . . . . . . . . . . . . . Core 1 | . . . . . 1 . . . . . . . . Reactor 1 | . . . . . . . . . 1 . . . . Propulsion 9 | . 2 . . . 3 . 1 . 1 . 2 . . Treads . | . . . . . . . . . . . . . . Leg . | . . . . . . . . . . . . . . Wheel . | . . . . . . . . . . . . . . Hover 2 | . . . . . 2 . . . . . . . . Flight 7 | . 2 . . . 1 . 1 . 1 . 2 . . Utility 2 | . . . . . 1 . 1 . . . . . . Device 1 | . . . . . 1 . . . . . . . . Storage . | . . . . . . . . . . . . . . Processor . | . . . . . . . . . . . . . . Hackware 1 | . . . . . . . 1 . . . . . . Protection . | . . . . . . . . . . . . . . Artifact . | . . . . . . . . . . . . . . Weapon . | . . . . . . . . . . . . . . Energy Gun . | . . . . . . . . . . . . . . Energy Cannon . | . . . . . . . . . . . . . . Ballistic Gun . | . . . . . . . . . . . . . . Ballistic Cannon . | . . . . . . . . . . . . . . Launcher . | . . . . . . . . . . . . . . Special Weapon . | . . . . . . . . . . . . . . Impact Weapon . | . . . . . . . . . . . . . . Slashing Weapon . | . . . . . . . . . . . . . . Piercing Weapon . | . . . . . . . . . . . . . . Special Melee Weapon . | . . . . . . . . . . . . . . Unidentified Prototypes 1 | . . . . . 1 . . . . . . . . Parts Lost 8 | . . 1 . . . 2 2 . 1 . 2 . . Power 1 | . . . . . . 1 . . . . . . . Propulsion 6 | . . 1 . . . 1 1 . 1 . 2 . . Utility 1 | . . . . . . . 1 . . . . . . Weapon . | . . . . . . . . . . . . . . Highest Loss Streak 2 | . . 1 . . . 2 1 . 1 . 2 . . To Critical Strikes . | . . . . . . . . . . . . . . Average Backups 3 | . . . . 1 2 5 5 5 5 5 5 5 5 Power . | . . . . 1 1 1 1 1 1 1 1 1 1 Propulsion . | . . . . . . . . . . . . . . Utility . | . . . . . . 1 1 1 1 1 1 1 1 Weapon 2 | . . . . . 1 3 3 3 3 3 3 3 3 Tool/Special . | . . . . . . . . . . . . . . Unused Backups 5 | . . . . . 1 . . . . . . . 4 Power 1 | . . . . . . . . . . . . . 1 Propulsion 1 | . . . . . 1 . . . . . . . . Utility . | . . . . . . . . . . . . . . Weapon 3 | . . . . . . . . . . . . . 3 Tool/Special . | . . . . . . . . . . . . . . Average Slot Usage (%) 3 | . 10 14 9 3 10 13 3 . 1 . . . . Flight 2 | . 10 14 9 3 1 6 2 . 1 . . . . Peak Build Rating 15 | . 2 2 1 1 15 11 14 2 15 2 10 2 2 Average Rating 3 | . . 1 1 . 8 9 8 2 3 2 3 2 2 On Entrance 2 | . . 2 1 1 . 11 2 2 2 2 2 2 2 Naked Turns 834 | . 19 . . 86 23 5 55 44 181 6 126 37 252 Heaviest Build 6 | . . . . . 6 6 . . . . . . . Greatest Support 13 | 3 8 8 4 4 8 6 13 3 7 3 8 3 3 Greatest Overweight (x) . | . . . . . . . . . . . . . . Average Overweight (x) . | . . . . . . . . . . . . . . Largest Inventory Capacity 5 | 5 5 5 5 5 5 5 5 5 5 5 5 5 5 Average Capacity 5 | 5 5 5 5 5 5 5 5 5 5 5 5 5 5 Most Carried 5 | . 1 . 1 1 5 5 5 5 5 5 5 5 5 Average Carried 3 | . . . . 1 3 5 5 5 5 5 5 5 5 Final Capacity 5 | 5 5 5 5 5 5 5 5 5 5 5 5 5 5 Final Carried 5 | . . . 1 1 5 5 5 5 5 5 5 5 5 Class Distribution -------------------- 100% | Mutant Dominant Class ---------------- Mutant | -10/Materials Mutant | -9/Materials Mutant | -8/Materials Mutant | -7/Factory Mutant | -6/Factory Mutant | -6/Extension Mutant | -5/Factory Mutant | -4/Factory Mutant | -4/Upper Caves Mutant | -4/Upper Caves Mutant | -3/Research Mutant | -2/Research Mutant | -1/Access Resources | -11 -10 -9 -8 -7 -6 -6 -5 -4 -4 -4 -3 -2 -1 ----------- Run | Yrd Mat Mat Mat Fac Fac Ext Fac Fac Upp Upp Res Res Acc Matter Collected 185 | . . . . . 25 6 2 . 122 . 30 . . Remotely . | . . . . . . . . . . . . . . Salvage Created 25 | . . . . . 25 . . . . . . . . Parts 2 | . . . . . 2 . . . . . . . . Haulers Intercepted . | . . . . . . . . . . . . . . Recyclers Shooed . | . . . . . . . . . . . . . . Parts Field Recycled . | . . . . . . . . . . . . . . Retrieved Matter . | . . . . . . . . . . . . . . Parts Self-Destructed . | . . . . . . . . . . . . . . Prevented . | . . . . . . . . . . . . . . Kills | -11 -10 -9 -8 -7 -6 -6 -5 -4 -4 -4 -3 -2 -1 ------- Run | Yrd Mat Mat Mat Fac Fac Ext Fac Fac Upp Upp Res Res Acc Combat Hostiles Destroyed . | . . . . . . . . . . . . . . Classes Destroyed 1 | . . . . . 1 . . . . . . . . Worker 1 | . . . . . 1 . . . . . . . . Best Kill Streak 1 | . . . . . 1 . . . . . . . . Combat Bots Only . | . . . . . . . . . . . . . . Max Kills in Single Turn 1 | . . . . . 1 . . . . . . . . Gunslinging . | . . . . . . . . . . . . . . Exploded . | . . . . . . . . . . . . . . Melee . | . . . . . . . . . . . . . . Uniques/NPCs Destroyed . | . . . . . . . . . . . . . . Combat | -11 -10 -9 -8 -7 -6 -6 -5 -4 -4 -4 -3 -2 -1 -------- Run | Yrd Mat Mat Mat Fac Fac Ext Fac Fac Upp Upp Res Res Acc Hostile Shots Fired 559 | . 2 11 27 46 12 42 96 7 67 8 57 37 147 Missed 261 | . 1 5 16 16 4 21 56 3 28 2 20 18 71 Hits 298 | . 1 6 11 30 8 21 40 4 39 6 37 19 76 Melee 10 | . . . . . . . 1 . . . 9 . . Projectile 288 | . 1 6 11 30 8 21 39 4 39 6 28 19 76 Critical Strikes 14 | . . . . 1 . . 4 . 3 . 4 . 2 Damage Taken 6703 | . 9 88 100 471 172 338 1047 78 795 308 1327 369 1601 Core 6235 | . . 74 91 471 75 288 921 78 755 308 1204 369 1601 Absorbed by Shields 35 | . . . . . . . . . . . 35 . . Core Remaining (%) 54 | 100 100 81 83 32 . 57 7 . . . 7 74 . Volleys Fired . | . . . . . . . . . . . . . . Largest . | . . . . . . . . . . . . . . Hottest . | . . . . . . . . . . . . . . Shots Fired . | . . . . . . . . . . . . . . Gun . | . . . . . . . . . . . . . . Cannon . | . . . . . . . . . . . . . . Launcher . | . . . . . . . . . . . . . . Special . | . . . . . . . . . . . . . . Kinetic . | . . . . . . . . . . . . . . Thermal . | . . . . . . . . . . . . . . Explosive . | . . . . . . . . . . . . . . Electromagnetic . | . . . . . . . . . . . . . . Robot Hit Streak . | . . . . . . . . . . . . . . Robot Miss Streak . | . . . . . . . . . . . . . . Penetration Max . | . . . . . . . . . . . . . . Secondary Targets . | . . . . . . . . . . . . . . Shots Hit Robots . | . . . . . . . . . . . . . . Core Hits 3 | . . . . . 2 . . . . . 1 . . Critical Kills . | . . . . . . . . . . . . . . Critical Parts Destroyed . | . . . . . . . . . . . . . . Critical Strikes . | . . . . . . . . . . . . . . Melee Attacks . | . . . . . . . . . . . . . . Impact . | . . . . . . . . . . . . . . Slashing . | . . . . . . . . . . . . . . Piercing . | . . . . . . . . . . . . . . Sneak Attacks . | . . . . . . . . . . . . . . Combat Hostiles . | . . . . . . . . . . . . . . Follow-up Attacks . | . . . . . . . . . . . . . . Damage Inflicted 34 | . . . . . 24 . 4 . . . 6 . . Guns . | . . . . . . . . . . . . . . Cannons . | . . . . . . . . . . . . . . Explosions . | . . . . . . . . . . . . . . Melee . | . . . . . . . . . . . . . . Ramming 34 | . . . . . 24 . 4 . . . 6 . . Kinetic . | . . . . . . . . . . . . . . Thermal . | . . . . . . . . . . . . . . Explosive . | . . . . . . . . . . . . . . Electromagnetic . | . . . . . . . . . . . . . . Impact . | . . . . . . . . . . . . . . Slashing . | . . . . . . . . . . . . . . Piercing . | . . . . . . . . . . . . . . Highest Corruption 1 | . . . . . 1 1 . . . . . . . Average Corruption 1 | . . . . . 1 1 . . . . . . . Corruption Purged . | . . . . . . . . . . . . . . Corruption Blocked . | . . . . . . . . . . . . . . Overload Shots . | . . . . . . . . . . . . . . Overflow Damage . | . . . . . . . . . . . . . . Projectiles . | . . . . . . . . . . . . . . Explosions . | . . . . . . . . . . . . . . Melee . | . . . . . . . . . . . . . . Knockbacks 1 | . . . . . 1 . . . . . . . . Impact 1 | . . . . . 1 . . . . . . . . Kinetic . | . . . . . . . . . . . . . . Secondary . | . . . . . . . . . . . . . . Self-Inflicted Damage 16 | . . . . . 11 . 2 . . . 3 . . Shots . | . . . . . . . . . . . . . . Rammed 4 | . . . . . 2 . 1 . . . 1 . . Targets Rammed 4 | . . . . . 2 . 1 . . . 1 . . Kicked . | . . . . . . . . . . . . . . Crushed . | . . . . . . . . . . . . . . Highest Temperature 373 | . . . . . 373 . . . 306 . . . . Average Temperature 181 | . . . . . 199 . . . 155 . . . . Received Heat Transfer 841 | . . 18 9 105 . 42 93 18 436 . 102 18 . Siege Activations . | . . . . . . . . . . . . . . Martial Activations . | . . . . . . . . . . . . . . Shielding Activations . | . . . . . . . . . . . . . . Robots Disrupted . | . . . . . . . . . . . . . . Combat Hostiles . | . . . . . . . . . . . . . . Robots Corrupted . | . . . . . . . . . . . . . . Combat Hostiles . | . . . . . . . . . . . . . . Parts Fried . | . . . . . . . . . . . . . . Impact Corruptions . | . . . . . . . . . . . . . . Robots Melted . | . . . . . . . . . . . . . . Combat Hostiles . | . . . . . . . . . . . . . . Parts Melted . | . . . . . . . . . . . . . . Heat Transferred . | . . . . . . . . . . . . . . Parts Sabotaged . | . . . . . . . . . . . . . . Parts Stolen . | . . . . . . . . . . . . . . Parts Stripped . | . . . . . . . . . . . . . . Power Chain Reactions . | . . . . . . . . . . . . . . Alert | -11 -10 -9 -8 -7 -6 -6 -5 -4 -4 -4 -3 -2 -1 ------- Run | Yrd Mat Mat Mat Fac Fac Ext Fac Fac Upp Upp Res Res Acc Maximum Alert Level 3 | . . . . . . . . . . . 3 2 1 Low Security (%) 75 | 100 100 100 100 100 100 100 100 100 . . 10 . 51 Level 1 12 | . . . . . . . . . . . 14 . 48 Level 2 9 | . . . . . . . . . . . 52 100 . Level 3 2 | . . . . . . . . . . . 23 . . Level 4 . | . . . . . . . . . . . . . . Level 5 . | . . . . . . . . . . . . . . High Security . | . . . . . . . . . . . . . . Max Security . | . . . . . . . . . . . . . . Peak Influence 818 | . . 45 31 50 24 . 139 67 . . 818 443 259 Initial 443 | . . . 18 9 24 . . 67 . . 54 443 259 Average 132 | . . 7 21 5 5 . 21 60 . . 520 438 206 Influence Increases 1342 | . . 45 23 60 20 . 179 . 90 56 824 . 45 Destroy 0b10 Robot/C 260 | . . . . . . . . . . 40 220 . . Destroy 0b10 Robot/NC 35 | . . . . . 5 . . . . . 30 . . Destroy Leader 64 | . . . . . . . . . . 10 54 . . Allied During Kill 18 | . . . . . . . . . . 6 12 . . Successful Hack 22 | . . . 8 . . . 14 . . . . . . Disable Machine 75 | . . . . . . . . . . . 75 . . Destroy Structure 418 | . . . . . . . . . . . 418 . . Partial Spotted 15 | . . . . . . . . . . . 15 . . Lose Combat Pursuer 435 | . . 45 15 60 15 . 165 . 90 . . . 45 Influence Decreases 1158 | . . . 47 31 70 . 40 92 107 6 116 355 294 Entered New Map 707 | . . . 27 12 26 . . 72 19 6 26 345 174 Time Decay 413 | . . . 20 19 44 . 30 20 80 . 70 10 120 Lost Part 38 | . . . . . . . 10 . 8 . 20 . . Squads Dispatched 12 | . . . . 1 2 . 4 . . . 3 . 2 Investigation 3 | . . . . . 1 . 2 . . . . . . Extermination 4 | . . . . 1 1 . 1 . . . . . 1 Reinforcement 5 | . . . . . . . 1 . . . 3 . 1 Assault . | . . . . . . . . . . . . . . Garrison . | . . . . . . . . . . . . . . Intercept . | . . . . . . . . . . . . . . Searches Triggered . | . . . . . . . . . . . . . . Construction Impeded . | . . . . . . . . . . . . . . Haulers Reinforced . | . . . . . . . . . . . . . . Active Scanning Responses . | . . . . . . . . . . . . . . Cargo Convoy Interrupts . | . . . . . . . . . . . . . . Stealth | -11 -10 -9 -8 -7 -6 -6 -5 -4 -4 -4 -3 -2 -1 --------- Run | Yrd Mat Mat Mat Fac Fac Ext Fac Fac Upp Upp Res Res Acc Distress Signals 2 | . . . . . . . 1 . . . 1 . . Communications Jammed . | . . . . . . . . . . . . . . Distress Signals . | . . . . . . . . . . . . . . Times Spotted 113 | . 4 5 12 8 4 4 24 4 9 2 14 6 17 Peak Tracking Total 17 | . 4 5 12 8 2 4 17 6 6 2 4 7 13 Tactical Retreats 11 | . . 1 1 2 1 . 3 . 2 . . . 1 Traps | -11 -10 -9 -8 -7 -6 -6 -5 -4 -4 -4 -3 -2 -1 ------- Run | Yrd Mat Mat Mat Fac Fac Ext Fac Fac Upp Upp Res Res Acc Traps Triggered 5 | . 1 . . 1 1 . . . . . 2 . . Indirectly . | . . . . . . . . . . . . . . Trap Hack Attempts . | . . . . . . . . . . . . . . Triggered . | . . . . . . . . . . . . . . Disarmed . | . . . . . . . . . . . . . . Reprogrammed . | . . . . . . . . . . . . . . Reused . | . . . . . . . . . . . . . . Traps Extracted . | . . . . . . . . . . . . . . Installed . | . . . . . . . . . . . . . . Triggered . | . . . . . . . . . . . . . . Machines | -11 -10 -9 -8 -7 -6 -6 -5 -4 -4 -4 -3 -2 -1 ---------- Run | Yrd Mat Mat Mat Fac Fac Ext Fac Fac Upp Upp Res Res Acc Machines Disabled 5 | . . . . . . . . . . . 5 . . Max in Single Turn . | . . . . . . . . . . . . . . Machines Repaired . | . . . . . . . . . . . . . . Machines Dismantled . | . . . . . . . . . . . . . . Machines Sabotaged . | . . . . . . . . . . . . . . Overloaded Fab Kills . | . . . . . . . . . . . . . . Hacking | -11 -10 -9 -8 -7 -6 -6 -5 -4 -4 -4 -3 -2 -1 --------- Run | Yrd Mat Mat Mat Fac Fac Ext Fac Fac Upp Upp Res Res Acc Machines Accessed 8 | . . 2 1 . 1 1 3 . . . . . . Terminals 8 | . . 2 1 . 1 1 3 . . . . . . Fabricators . | . . . . . . . . . . . . . . Repair Stations . | . . . . . . . . . . . . . . Recycling Units . | . . . . . . . . . . . . . . Scanalyzers . | . . . . . . . . . . . . . . Garrison Access . | . . . . . . . . . . . . . . Total Hacks 17 | . . 2 3 . 2 1 9 . . . . . . Successful 4 | . . 1 1 . . 1 1 . . . . . . Failed 13 | . . 1 2 . 2 . 8 . . . . . . Catastrophic 5 | . . 1 . . 1 . 3 . . . . . . Database Lockouts . | . . . . . . . . . . . . . . Manual 9 | . . 1 3 . 2 . 3 . . . . . . Terminals 17 | . . 2 3 . 2 1 9 . . . . . . Fabricators . | . . . . . . . . . . . . . . Repair Stations . | . . . . . . . . . . . . . . Recycling Units . | . . . . . . . . . . . . . . Scanalyzers . | . . . . . . . . . . . . . . Garrison Access . | . . . . . . . . . . . . . . Terminal Hacks 4 | . . 1 1 . . 1 1 . . . . . . Open Door 1 | . . . . . . 1 . . . . . . . Level Access Points 1 | . . . 1 . . . . . . . . . . Zone Layout 2 | . . 1 . . . . 1 . . . . . . Fabricator Hacks . | . . . . . . . . . . . . . . Repair Station Hacks . | . . . . . . . . . . . . . . Recycling Unit Hacks . | . . . . . . . . . . . . . . Scanalyzer . | . . . . . . . . . . . . . . Garrison Access Hacks . | . . . . . . . . . . . . . . Unauthorized Hacks . | . . . . . . . . . . . . . . Terminals . | . . . . . . . . . . . . . . Fabricators . | . . . . . . . . . . . . . . Repair Stations . | . . . . . . . . . . . . . . Recycling Units . | . . . . . . . . . . . . . . Scanalyzers . | . . . . . . . . . . . . . . Garrison Access . | . . . . . . . . . . . . . . Data Cores Recovered . | . . . . . . . . . . . . . . Used . | . . . . . . . . . . . . . . Hacking Detections 6 | . . 1 1 . 1 . 3 . . . . . . Full Trace Events 2 | . . . . . . . 2 . . . . . . Feedback Events . | . . . . . . . . . . . . . . Feedback Blocked . | . . . . . . . . . . . . . . Robot Schematics Acquired . | . . . . . . . . . . . . . . Robots Built . | . . . . . . . . . . . . . . Authchips . | . . . . . . . . . . . . . . Time . | . . . . . . . . . . . . . . Total Robot Build Rating . | . . . . . . . . . . . . . . Part Schematics Acquired . | . . . . . . . . . . . . . . Parts Built . | . . . . . . . . . . . . . . Authchips . | . . . . . . . . . . . . . . Time . | . . . . . . . . . . . . . . Total Part Build Rating . | . . . . . . . . . . . . . . Parts Repaired . | . . . . . . . . . . . . . . Time . | . . . . . . . . . . . . . . Parts Recycled . | . . . . . . . . . . . . . . Recycled Matter . | . . . . . . . . . . . . . . Retrieved Matter . | . . . . . . . . . . . . . . Retrieved Components . | . . . . . . . . . . . . . . Parts Scanalyzed . | . . . . . . . . . . . . . . Part Schematics Acquired . | . . . . . . . . . . . . . . Parts Damaged . | . . . . . . . . . . . . . . Bothacking | -11 -10 -9 -8 -7 -6 -6 -5 -4 -4 -4 -3 -2 -1 ------------ Run | Yrd Mat Mat Mat Fac Fac Ext Fac Fac Upp Upp Res Res Acc Used RIF Installer . | . . . . . . . . . . . . . . Robots Hacked . | . . . . . . . . . . . . . . Non-combat . | . . . . . . . . . . . . . . Combat . | . . . . . . . . . . . . . . Robot Hacks Applied . | . . . . . . . . . . . . . . Relay Couplers Released . | . . . . . . . . . . . . . . Fabnet Peak Effective % . | . . . . . . . . . . . . . . Robots Rewired . | . . . . . . . . . . . . . . Allies Hacked . | . . . . . . . . . . . . . . Hacks Repelled . | . . . . . . . . . . . . . . Allies | -11 -10 -9 -8 -7 -6 -6 -5 -4 -4 -4 -3 -2 -1 -------- Run | Yrd Mat Mat Mat Fac Fac Ext Fac Fac Upp Upp Res Res Acc Total Allies 1 | . . . . . . . . . . 1 . . . Largest Group 1 | . . . . . . . . . . 1 1 . . Highest-Rated Group 138 | . . . . . . . . . . 138 138 . . Highest-Rated Ally 138 | . . . . . . . . . . 138 138 . . Total Orders . | . . . . . . . . . . . . . . Ally Attacks 19 | . . . . . . . . . . 1 18 . . Total Damage 3791 | . . . . . . . . . . 504 3287 . . Kills 19 | . . . . . . . . . . 2 17 . . Allies Corrupted . | . . . . . . . . . . . . . . Allies Melted . | . . . . . . . . . . . . . . Intel | -11 -10 -9 -8 -7 -6 -6 -5 -4 -4 -4 -3 -2 -1 ------- Run | Yrd Mat Mat Mat Fac Fac Ext Fac Fac Upp Upp Res Res Acc Active Infowar (turns) . | . . . . . . . . . . . . . . Robot Analysis Total . | . . . . . . . . . . . . . . Derelict Logs Recovered . | . . . . . . . . . . . . . . Drone Launches . | . . . . . . . . . . . . . . Drone Recoveries . | . . . . . . . . . . . . . . Exploration | -11 -10 -9 -8 -7 -6 -6 -5 -4 -4 -4 -3 -2 -1 ------------- Run | Yrd Mat Mat Mat Fac Fac Ext Fac Fac Upp Upp Res Res Acc Turns Passed 1420 | 9 35 54 40 153 189 45 173 44 233 6 150 37 252 Spaces Moved 2899 | 18 72 138 96 339 361 110 364 87 469 12 281 70 482 Core 1670 | 18 35 . . 171 41 10 159 87 360 12 225 70 482 Treads . | . . . . . . . . . . . . . . Legs . | . . . . . . . . . . . . . . Wheels . | . . . . . . . . . . . . . . Hover 216 | . . . . . 216 . . . . . . . . Flight 1013 | . 37 138 96 168 104 100 205 . 109 . 56 . . Fastest Speed 30 | 50 37 37 40 40 40 40 40 50 45 50 30 50 50 Average Speed 46 | 50 43 39 40 45 47 40 44 50 48 50 47 50 50 Slowest Speed 50 | 50 50 40 40 50 50 50 50 50 50 50 50 50 50 Overloaded Moves . | . . . . . . . . . . . . . . Propulsion Burnouts . | . . . . . . . . . . . . . . Robots Hopped . | . . . . . . . . . . . . . . Potential Cave-ins . | . . . . . . . . . . . . . . Cave-ins Triggered . | . . . . . . . . . . . . . . Exploration Rate (%) 17 | 3 14 27 18 14 15 25 16 4 69 4 11 3 19 Regions Visited 13 Branch Regions 3 Pre-discovered Areas . | . . . . . . . . . . . . . . Known Exits Taken 1 | . . . 1 . . . . . . . . . . Unknown Exits Taken 12 | 1 1 1 . 1 1 1 1 1 1 1 1 1 . Scrap Searched 1 | . . . . . . . . . 1 . . . . Spaces Dug . | . . . . . . . . . . . . . . Terrain Destroyed . | . . . . . . . . . . . . . . Melee . | . . . . . . . . . . . . . . Projectile . | . . . . . . . . . . . . . . AOE . | . . . . . . . . . . . . . . Terrain Rammed . | . . . . . . . . . . . . . . Walls Destroyed . | . . . . . . . . . . . . . . Machines Disabled . | . . . . . . . . . . . . . . Actions | -11 -10 -9 -8 -7 -6 -6 -5 -4 -4 -4 -3 -2 -1 --------- Run | Yrd Mat Mat Mat Fac Fac Ext Fac Fac Upp Upp Res Res Acc Total 2952 | 17 75 137 96 338 380 109 373 86 471 11 295 71 493 Wait 32 | . . . . . . . 7 . . . 12 2 11 Move 2886 | 17 71 137 95 338 360 109 363 86 468 11 280 69 482 Hop . | . . . . . . . . . . . . . . Pick Up 12 | . 2 . 1 . 9 . . . . . . . . Fast Attach 7 | . . . . . 1 . 2 . 2 . 2 . . Attach 6 | . 2 . . . 4 . . . . . . . . Detach . | . . . . . . . . . . . . . . Swap . | . . . . . . . . . . . . . . Drop 5 | . . . . . 4 . . . 1 . . . . Fire . | . . . . . . . . . . . . . . Melee . | . . . . . . . . . . . . . . Ram 4 | . . . . . 2 . 1 . . . 1 . . Kick . | . . . . . . . . . . . . . . Crush . | . . . . . . . . . . . . . . Escape Stasis . | . . . . . . . . . . . . . . Rewire . | . . . . . . . . . . . . . . Trap . | . . . . . . . . . . . . . . Miscellaneous . | . . . . . . . . . . . . . . Route ------- -11/Scrapyard -10/Materials -9/Materials -8/Materials (discovered 4 exits: *Fac x3 / [*Sto]) -7/Factory -6/Factory -6/Extension -5/Factory -4/Factory -4/Upper Caves -4/Upper Caves -3/Research -2/Research -1/Access History --------- Turn | Location | Event 5 | -11/Scrapyard | Discovered new exit (range 12) 10 | -11/Scrapyard | Entered Materials 40 | -10/Materials | Discovered new exit (range 15) 45 | -10/Materials | Entered another Materials area 45 | -9/Materials | Evolved 2 slots: Propulsion x2 97 | -9/Materials | Discovered new exit (range 4) 99 | -9/Materials | Entered another Materials area 99 | -8/Materials | Evolved 2 slots: Propulsion x2 106 | -8/Materials | Identified exit to Factory 108 | -8/Materials | Discovered new exit (range 15) 139 | -8/Materials | Entered Factory 139 | -7/Factory | Evolved 2 slots: Propulsion x1, Utility x1 279 | -7/Factory | Discovered new exit (range 16) 288 | -7/Factory | Core integrity fell below 50% 292 | -7/Factory | Entered another Factory area 292 | -6/Factory | Evolved 2 slots: Utility x2 338 | -6/Factory | Build established: Mutant 479 | -6/Factory | Discovered new exit (range 5) 481 | -6/Factory | Entered Extension 516 | -6/Extension | Spotted B-75 Beast 520 | -6/Extension | Spotted B-75 Beast 525 | -6/Extension | Discovered new exit (range 3) 526 | -6/Extension | Entered Factory 526 | -5/Factory | Evolved 2 slots: Propulsion x1, Utility x1 553 | -5/Factory | Spotted B-75 Beast 655 | -5/Factory | Core integrity fell below 50% 688 | -5/Factory | Discovered new exit (range 16) 697 | -5/Factory | Core integrity fell below 20% 699 | -5/Factory | Entered another Factory area 699 | -4/Factory | Evolved 2 slots: Utility x2 737 | -4/Factory | Discovered new exit (range 8) 743 | -4/Factory | Entered Upper Caves 748 | -4/Upper Caves | Found DCF Scrap (15 items) 846 | -4/Upper Caves | Spotted B-86 Titan 854 | -4/Upper Caves | Core integrity fell below 50% 969 | -4/Upper Caves | Discovered new exit (range 12) 976 | -4/Upper Caves | Entered another Upper Caves area 978 | -4/Upper Caves | 99-TNT showed up to help 978 | -4/Upper Caves | Core integrity fell below 20% 980 | -4/Upper Caves | 99-TNT revealed a hidden path 982 | -4/Upper Caves | Entered Research 982 | -3/Research | Accompanied by 1 ally (99-TNT) 982 | -3/Research | Evolved 2 slots: Power x2 999 | -3/Research | Spotted B-86 Titan 1114 | -3/Research | Core integrity fell below 50% 1115 | -3/Research | Discovered new exit (range 8) 1127 | -3/Research | Core integrity fell below 20% 1132 | -3/Research | Entered another Research area 1132 | -2/Research | Evolved 2 slots: Weapon x2 1161 | -2/Research | Discovered new exit (range 11) 1169 | -2/Research | Entered Access 1169 | -1/Access | Evolved 2 slots: Power x2 1375 | -1/Access | Spotted B-99 Colossus 1389 | -1/Access | Core integrity fell below 50% 1410 | -1/Access | Core integrity fell below 20% 1421 | -1/Access | Destroyed by S-43 Plague with Heavy Machine Gun Last Messages --------------- LOCATION=UNKNOWN GOAL=ESCAPE 01206_ K-01 Serf cleans the Fabricator. 01341_ ALERT: Potential suspicious activity detected, Programmers report to Access Zone 4U. 01371_ C-30 ARC bursts open, deploying its payload. 01371_ S-43 Plague unfolds itself. 01372_ Slug penetrates Wall. 01379_ Radio-Gravity Array disabled. 01379_ Slug penetrates Radio-Gravity Array. 01381_ T-07 Excavator destroyed. 01404_ O-32 Director: "IFF HANDSHAKE FAILED. SECURING TERMINAL." 01408_ O-32 Director uses terminal to summon reinforcements. 01408_ ALERT: Hostiles spotted, dispatching reinforcements to Terminal A007. 01408_ O-32 Director locks terminal. Map ----- +----------------------------------------------------+ | ????????????? #? = "???????? | | ???????????? #? "???????? | | ???????????? ## [ R??????? | | ???????????? #? ""??????? | | ??????????????# ## ""??????? | | ??????????????????####### ###### ## ??????? | | ????????????????????????# #????# ## ??????? | | ????????????????????????# #????# ########???????? | | ????????????????????????# #????# #??????????????? | | ????????????????????????# #????# #??????????????? | | ????????????????????????# #?????+#??????????????? | | ????????????????????????# s#?????????????????????? | | ????????????????????????# #?????????????????????? | | ????????????????????????#ss#?????????????????????? | | ????????????????????????# #?????????????????????? | | ????????????????????????# s#?????????????????????? | | ????????????????????????# s#??????#??????????????? | | ????????????????????????# s#????! #??????????????? | | ????????????????????????# #?? #??????????????? | | ????????????????????????+ s# #??????????????? | | ????????????????????????# s/ #??????????????? | | ????????????????????????# s# #??????????????? | | ????????????????????????# s#?? ! #??????????????? | | ????????????????????????# #???? #??????????????? | | ????????????????????????# #??????#??????????????? | | ????????????????????????#@k#?????????????????????? | | ????????????????????????# ??????????????????? | | ????????????????????????# ??????????????? | | ????????????????????????####+#######?????????????? | | ?????????????????????????????????????????????????? | | ?????????????????????????????????????????????????? | | ?????????????????????????????????????????????????? | | ?????????????????????????????????????????????????? | | ?????????????????????????????????????????????????? | | ?????????????????????????????????????????????????? | | ?????????????????????????????????????????????????? | | ?????????????????????????????????????????????????? | | ?????????????????????????????????????????????????? | | ?????????????????????????????????????????????????? | | ?????????????????????????????????????????????????? | | ?????????????????????????????????????????????????? | | ?????????????????????????????????????????????????? | | ?????????????????????????????????????????????????? | | ?????????????????????????????????????????????????? | | ?????????????????????????????????????????????????? | | ?????????????????????????????????????????????????? | | ?????????????????????????????????????????????????? | | ?????????????????????????????????????????????????? | | ?????????????????????????????????????????????????? | | ?????????????????????????????????????????????????? | +----------------------------------------------------+ Best States ------------- Heat Dissipation 52 Energy Generation 15 Energy Capacity 150 Matter Stores 205 Matter Capacity 300 Sight Range 16 Terrain Scan Density 10 Power Amplification 20 Evasion (%) 62 Offensive Hacking 10 Item Schematics ----------------- None Robot Schematics ------------------ None Fabricated ------------ Nothing Repaired ---------- Nothing Alien Tech Used ----------------- None Achievements -------------- Close Call Leap Before You Look Streaker Challenges ------------ None Game ------ Seed LargeFactoryRefractor Manual? 0 Play Time 00:34:12 Cumulative 17.7 hours Start 2025.07.10 @ 02:49:47 End 2025.07.10 @ 03:21:55 Sessions 1 Manual Loads 0 Difficulty Rogue Special Mode None Game No. 14 Rogue 14 Adventurer 0 Explorer 0 Win Type - Total 0 Types 0/0/0/0/0/0/0/0/0/0 Lore% 17 Gallery% 18 Achievement% 24 Wizard Run 0 Options --------- Layout 1 ASCII 0 Keyboard 0 Movement Mouse Keybinds 0 Fullscreen 1 Font 24/Smallcaps Map View 50x35 Zoom Use 0% Tactical HUD 1 Map Filters NONE Filters NONE Steam 1 RUN: 750477b7-cec2-47c3-94e4-4435ac95daa5